bitfinex/quotes_ETHUSD_20240612
["timestamp","ask_amount","ask_price","bid_price","bid_amount"]
[1718186857477,2.81264,3555.4,3554.4,0.55]
[1718186857700,2.81264,3555.4,3554.4,3.55]
[1718186858421,3.93283232,3555.4,3554.4,3.55]
[1718186858779,2.81286,3555.1,3554.4,3.55]
[1718186859623,7.0446,3554.6,3553.5,10.30411]
[1718186859919,6.8643,3554.4,3553.2,0.57413354]
[1718186860093,6.8643,3554.4,3553.0,3.05755799]
[1718186860094,2.81376,3554.0,3553.0,3.05755799]
[1718186860295,2.81376,3554.0,3553.3,1.125324]
[1718186860511,3.1573006,3554.0,3553.0,2.81451]
[1718186860739,3.1573006,3554.0,3553.0,3.18176977]
[1718186861024,0.3435406,3554.0,3553.1,1.125334]
[1718186861189,6.7768,3553.9,3553.1,1.125334]
[1718186861391,7.48883406,3553.9,3553.1,1.125334]
[1718186861615,7.83237466,3553.9,3553.1,1.125334]
[1718186862091,7.1203406,3553.9,3553.2,2.87064335]
[1718186862289,0.3435406,3553.9,3553.4,2.81414]
[1718186862589,0.3435406,3553.9,3553.5,0.05627569]
[1718186863325,0.3435406,3553.9,3553.6,5.05203]
[1718186863503,0.3435406,3553.9,3553.8,2.81388]
[1718186863704,0.3435406,3553.9,3553.8,3.36388]
[1718186863906,0.3435406,3553.9,3553.8,6.36388]
[1718186864296,7.0691,3554.9,3554.5,2.81333]
[1718186864619,7.0691,3554.9,3554.6,0.55]
[1718186865185,7.1723,3555.6,3554.7,2.81317]
[1718186865420,7.1723,3555.6,3554.8,0.55]
[1718186865831,0.1220114,3555.7,3555.6,2.81246]
[1718186866019,0.1220114,3555.7,3555.6,3.36246]
[1718186867529,0.1220114,3555.7,3555.6,5.05046]
[1718186867835,0.1220114,3555.7,3555.6,8.05046]
[1718186868614,0.1220114,3555.7,3555.6,8.29337375]
[1718186869836,0.1220114,3555.7,3555.6,8.05046]
[1718186870610,0.1220114,3555.7,3555.6,11.05046]
[1718186870934,0.1220114,3555.7,3555.6,8.29337075]
[1718186871097,0.1220114,3555.7,3555.6,8.05046]
[1718186871293,8.09717721,3557.0,3556.4,3.0]
[1718186871493,8.09717721,3557.0,3556.5,8.04975]
[1718186871494,5.51786336,3556.6,3556.5,8.04975]
[1718186871735,2.50680238,3556.6,3556.5,8.45175977]
[1718186871903,2.50680238,3556.6,3556.5,9.26872337]
[1718186872127,2.50680238,3556.6,3556.5,10.39282537]
[1718186872429,2.50680238,3556.6,3556.5,9.81869183]
[1718186872646,2.50680238,3556.6,3556.5,44.57586177]
[1718186872849,2.50680238,3556.6,3556.5,44.173852]
[1718186873153,2.50680238,3556.6,3556.5,9.173852]
[1718186878730,2.50680238,3556.6,3556.5,9.57586177]
[1718186879863,0.42448301,3556.6,3556.5,16.13761177]
[1718186880059,0.42448301,3556.6,3556.5,15.38761177]
[1718186880358,0.42448301,3556.6,3556.5,16.13761177]
[1718186880566,0.42448301,3556.6,3556.5,15.38761177]
[1718186880770,0.42448301,3556.6,3556.5,12.57586177]
[1718186884185,0.42448301,3556.6,3556.5,6.935852]
[1718186884334,0.42448301,3556.6,3556.5,3.935852]
[1718186884938,0.42448301,3556.6,3556.1,2.812]
[1718186885163,0.42448301,3556.6,3556.3,1.124407]
[1718186886175,0.42448301,3556.6,3556.4,2.86806324]
[1718186886870,0.42448301,3556.6,3556.4,2.81183]
[1718186887080,0.42448301,3556.6,3556.5,0.05622887]
[1718186887269,0.42448301,3556.6,3556.5,0.55]
[1718186888868,0.42448301,3556.6,3556.5,7.286]
[1718186889070,0.42448301,3556.6,3556.5,5.598]
[1718186890492,0.42448301,3556.6,3556.5,3.0]
[1718186891369,0.42448301,3556.6,3556.5,4.688]
[1718186891688,0.42448301,3556.6,3556.5,3.0]
[1718186891992,0.42448301,3556.6,3556.5,3.55]
[1718186893561,0.42448301,3556.6,3556.5,3.79287421]
[1718186894164,8.19143138,3557.3,3557.1,4.688]
[1718186894371,8.11374138,3557.3,3557.2,3.55]
[1718186894565,8.11374138,3557.3,3557.2,6.36119]
[1718186894768,8.11374138,3557.3,3557.2,6.60396936]
[1718186895162,8.11374138,3557.3,3557.2,7.00597913]
[1718186896263,8.11374138,3557.3,3557.2,9.81716913]
[1718186896650,8.11374138,3557.3,3557.2,11.86516913]
[1718186897612,8.11374138,3557.3,3557.2,11.86518606]
[1718186899301,8.11374138,3557.3,3557.2,11.46317629]
[1718186899479,8.11374138,3557.3,3557.2,8.65198629]
[1718186903274,8.11374138,3557.3,3557.2,6.05398629]
[1718186903674,8.11374138,3557.3,3557.2,5.81119]
[1718186905410,8.11374138,3557.3,3557.2,6.36119]
[1718186905820,8.11374138,3557.3,3557.2,6.60404031]
[1718186905976,8.11374138,3557.3,3557.2,6.36119]
[1718186906799,8.11374138,3557.3,3557.2,3.0]
[1718186907106,8.11374138,3557.3,3557.0,3.0]
[1718186907292,8.11374138,3557.3,3557.1,0.55]
[1718186909515,8.11374138,3557.3,3556.3,4.69854054]
[1718186909516,6.7703,3557.2,3556.5,0.57413354]
[1718186909805,9.58154,3557.2,3556.3,1.69854054]
[1718186910012,9.58154,3557.2,3556.3,1.124407]
[1718186910215,2.81136,3557.0,3556.3,1.124407]
[1718186910789,6.7703,3557.2,3556.3,3.172407]
[1718186910995,6.7703,3557.2,3556.6,2.81164]
[1718186911171,6.7703,3557.2,3556.4,0.24286935]
[1718186911371,6.7703,3557.2,3556.5,2.81174]
[1718186911616,6.7703,3557.2,3556.6,0.55]
[1718186912610,6.7703,3557.2,3556.4,0.24286935]
[1718186912611,2.81128,3557.1,3556.4,0.24286935]
[1718186912912,2.81128,3557.1,3556.4,3.0]
[1718186913098,2.81128,3557.1,3556.4,3.24286935]
[1718186913411,2.81128,3557.1,3556.3,4.36731197]
[1718186913633,2.81147,3556.9,3556.3,4.36731197]
[1718186913777,2.81147,3556.9,3556.2,3.57413354]
[1718186913978,3.94659821,3556.9,3556.1,0.57413354]
[1718186914178,7.217,3556.8,3556.2,1.124449]
[1718186914404,2.8116,3556.7,3556.2,1.124449]
[1718186914744,7.217,3556.8,3556.4,2.81179]
[1718186915207,15.33074138,3557.3,3556.5,3.0]
[1718186915412,15.33074138,3557.3,3556.5,3.24292133]
[1718186915598,15.33074138,3557.3,3556.5,3.81705487]
[1718186915788,15.33074138,3557.3,3556.5,3.24292133]
[1718186916616,17.14491752,3557.3,3556.4,3.38592354]
[1718186916787,6.9222,3557.2,3556.3,0.57413354]
[1718186916987,6.9222,3557.2,3556.1,3.0]
[1718186917298,6.9222,3557.2,3556.1,4.124482]
[1718186917490,7.1037,3556.9,3556.1,3.0]
[1718186917692,7.1037,3556.9,3555.9,0.57413354]
[1718186917897,7.1037,3556.9,3556.0,1.124512]
[1718186919102,2.81154,3556.8,3555.8,3.81705676]
[1718186919291,2.81154,3556.8,3555.9,0.55]
[1718186919490,2.81154,3556.8,3555.9,1.674549]
[1718186919491,0.991524,3556.7,3555.9,1.674549]
[1718186919694,0.991524,3556.7,3555.6,0.57413354]
[1718186919894,2.81198,3556.3,3555.4,1.69877654]
[1718186920101,2.81198,3556.3,3555.4,1.124643]
[1718186921409,7.324,3556.2,3555.4,1.124643]
[1718186921582,7.324,3556.2,3555.0,0.57413354]
[1718186921783,7.324,3556.2,3554.8,0.57413354]
[1718186921984,2.81241,3555.7,3554.7,3.937966]
[1718186923113,2.81216,3556.0,3554.9,2.81295]
[1718186925316,2.81237,3555.8,3554.9,2.81295]
[1718186926784,2.8118,3556.5,3555.3,2.81263]
[1718186926785,7.0015,3556.5,3555.3,2.81263]
[1718186926995,7.28268,3556.5,3555.9,2.81215]
[1718186929223,2.81185,3556.4,3555.5,2.8125]
[1718186931891,2.81203,3556.2,3555.5,2.8125]
[1718186932310,3.821501,3556.2,3555.5,2.8125]
[1718186932639,1.009471,3556.2,3555.5,2.8125]
[1718186932929,10.09447,3556.5,3555.5,2.8125]
[1718186933136,10.09447,3556.5,3555.8,2.81228]
[1718186934121,10.09447,3556.5,3555.5,2.81252]
[1718186935344,2.81195,3556.3,3555.5,2.81252]
[1718186936238,7.28268,3556.5,3555.1,0.24296406]
[1718186936404,0.728268,3556.4,3554.7,1.124866]
[1718186937541,7.4223,3555.6,3554.9,2.81299]
[1718186939566,2.81243,3555.7,3554.9,2.81299]
[1718186940275,2.81273,3555.3,3554.7,1.124866]
[1718186940434,2.81273,3555.3,3554.4,3.24296406]
[1718186940764,2.81273,3555.3,3554.5,1.124926]
[1718186940942,2.81273,3555.3,3554.5,3.938216]
[1718186941119,2.81273,3555.3,3554.6,3.0]
[1718186943041,2.81248,3555.6,3554.9,2.81297]
[1718186945254,2.81226,3555.9,3555.0,0.55]
[1718186946251,2.81226,3555.9,3555.1,2.81284]
[1718186947356,7.2524,3556.9,3555.8,2.8123]
[1718186947536,7.2524,3556.9,3555.5,2.048]
[1718186947738,7.2524,3556.9,3556.1,2.81201]
[1718186950364,15.54114138,3557.3,3556.3,2.81183]
[1718186951264,15.54114138,3557.3,3556.7,2.81158]
[1718186954258,15.54114138,3557.3,3556.2,0.24289633]
[1718186954259,18.35227138,3557.3,3556.3,2.81187]
[1718186954567,18.35227138,3557.3,3556.4,0.55]
[1718186956620,8.11374138,3557.3,3557.2,2.81119]
[1718186956820,8.11374138,3557.3,3557.2,3.36119]
[1718186958324,8.11374138,3557.3,3557.2,6.36119]
[1718186958931,8.11374138,3557.3,3557.2,6.60400702]
[1718186959134,8.11374138,3557.3,3557.2,6.36119]
[1718186961757,8.28568555,3557.7,3557.6,7.49788]
[1718186961970,4.6397682,3557.7,3557.6,23.16105409]
[1718186962126,8.38241644,3558.0,3557.9,2.81064]
[1718186962327,8.38241644,3558.0,3557.9,14.79254]
[1718186963159,0.00247672,3558.0,3557.9,27.88132]
[1718186963374,0.005,3560.1,3557.9,27.88132]
[1718186963375,0.005,3560.1,3559.1,2.80969]
[1718186963537,0.005,3560.1,3559.1,5.40769]
[1718186964459,0.005,3560.1,3559.1,7.09469]
[1718186964661,0.005,3560.1,3559.1,10.09469]
[1718186965128,0.005,3560.1,3559.1,12.90438]
[1718186965325,0.005,3560.1,3559.5,4.49638]
[1718186965532,0.005,3560.1,3559.5,12.90376]
[1718186965726,0.005,3560.1,3559.5,7.09438]
[1718186966031,0.005,3560.1,3559.5,10.49145045]
[1718186966962,0.005,3560.1,3559.5,8.44345045]
[1718186967262,0.005,3560.1,3559.5,8.40738]
[1718186968934,0.005,3560.1,3559.1,8.4291]
[1718186968935,2.81393,3560.1,3559.1,11.23878]
[1718186969239,2.81425,3559.7,3559.1,8.4291]
[1718186969439,0.37747495,3559.6,3559.1,8.4291]
[1718186969653,6.8657,3559.5,3559.1,8.4291]
[1718186969857,2.80947,3559.4,3559.1,8.4291]
[1718186972178,0.37747495,3559.6,3559.1,8.4291]
[1718186972179,0.08731814,3559.6,3559.2,2.80962]
[1718186972368,0.08731814,3559.6,3559.3,0.55]
[1718186973745,0.08731814,3559.6,3559.4,4.55264867]
[1718186974080,0.005,3560.1,3559.6,1.687]
[1718186974244,0.005,3560.1,3559.7,0.05616694]
[1718186974442,0.005,3560.1,3559.9,1.687]
[1718186974644,0.005,3560.1,3560.0,0.60616697]
[1718186974870,0.005,3560.1,3560.0,0.55]
[1718186975082,0.005,3560.1,3560.0,6.35898]
[1718186975396,0.005,3560.1,3560.0,0.55]
[1718186975559,0.005,3560.1,3559.8,0.55]
[1718186976556,0.005,3560.1,3559.5,8.4282]
[1718186976783,0.005,3560.1,3559.6,2.80927]
[1718186977088,0.005,3560.1,3559.6,0.05618569]
[1718186977293,0.005,3560.1,3559.6,0.45325614]
[1718186977786,0.005,3560.1,3560.0,2.80898]
[1718186978495,0.005,3560.1,3560.0,8.04598]
[1718186978865,0.005,3560.1,3560.0,8.44305045]
[1718186979490,0.005,3560.1,3560.0,6.75605045]
[1718186980197,0.005,3560.1,3560.0,12.37401045]
[1718186980198,1e-05,3560.1,3560.0,12.37401045]
[1718186980372,0.05,3562.0,3561.5,2.80775]
[1718186980695,0.05,3562.0,3561.8,2.80755]
[1718186981071,0.05,3562.0,3561.9,0.55]
[1718186981270,0.05,3562.0,3561.6,8.4232]
[1718186981481,0.05,3562.0,3561.7,3.55]
[1718186981785,0.05,3562.0,3561.7,0.55]
[1718186981986,0.05,3562.0,3561.8,2.80756]
[1718186982356,0.05,3562.0,3561.9,3.60614292]
[1718186982989,0.05,3562.0,3561.9,3.55]
[1718186985996,0.05,3562.0,3561.6,8.4232]
[1718186986365,0.335732,3562.0,3561.6,8.4232]
[1718186986873,2.80749,3561.9,3561.6,8.4232]
[1718186987785,7.394932,3562.0,3561.6,8.4232]
[1718186987994,7.1092,3562.0,3561.6,8.4232]
[1718186988996,9.91663,3562.0,3561.6,8.4232]
[1718186991064,12.72406,3562.0,3561.6,8.4232]
[1718186991372,2.80816,3561.1,3559.9,5.619]
[1718186991573,2.80816,3561.1,3559.9,6.04633154]
[1718186991762,0.280816,3561.0,3559.9,6.04633154]
[1718186992193,2.80827,3560.9,3559.9,6.04633154]
[1718186993002,10.01027,3560.9,3559.9,3.23633154]
[1718186993217,10.01027,3560.9,3559.9,2.809]
[1718186994087,10.01027,3560.9,3559.4,2.80939]
[1718186994088,2.80884,3560.2,3559.4,2.80939]
[1718186994909,2.80846,3560.7,3559.7,2.80921]
[1718186995087,1.001046,3560.6,3559.7,2.80921]
[1718186996294,1.001046,3560.6,3559.8,0.55]
[1718186996695,1.001046,3560.6,3559.9,2.80904]
[1718186996894,7.202,3560.9,3560.1,2.8089]
[1718186997291,7.202,3560.9,3560.2,0.55]
[1718186997789,7.4714,3561.7,3560.8,2.80834]
[1718186997991,7.4714,3561.7,3560.4,2.80859]
[1718186998315,0.74714,3561.6,3560.5,0.55]
[1718186998522,0.74714,3561.6,3560.5,3.55]
[1718186999116,3.55487,3561.6,3560.5,3.55]
[1718186999622,3.55487,3561.6,3560.6,2.80849]
[1718186999778,2.80813,3561.1,3560.0,2.80894]
[1718186999981,0.05,3562.0,3560.4,2.80864]
[1718187000230,0.05,3562.0,3560.1,3.60617017]
[1718187000231,0.05,3562.0,3560.9,2.727]
[1718187000515,0.05,3562.0,3561.3,2.80791]
[1718187000892,0.05,3562.0,3561.9,2.80749]
[1718187001412,0.05,3562.0,3561.9,3.35749]
[1718187004599,0.05,3562.0,3561.9,0.55]
[1718187004794,0.05,3562.0,3561.6,0.55]
[1718187005017,0.05,3562.0,3561.9,0.308288]
[1718187005197,0.05,3562.0,3561.9,0.858288]
[1718187005726,0.05,3562.0,3561.9,3.665778]
[1718187006427,0.05,3562.0,3561.9,0.858288]
[1718187006886,0.05,3562.0,3561.9,3.665778]
[1718187008624,6.9083,3562.0,3561.0,0.57215842]
[1718187008784,0.96353,3561.9,3561.5,0.308289]
[1718187008982,2.80756,3561.8,3561.5,0.308289]
[1718187011990,6.9083,3562.0,3560.4,0.05616427]
[1718187011991,2.80799,3561.3,3560.4,0.05616427]
[1718187012193,6.9083,3562.0,3560.4,1.123049]
[1718187012194,2.80825,3561.0,3560.4,1.123049]
[1718187012610,2.80825,3561.0,3560.2,2.8088]
[1718187012831,2.80843,3560.8,3560.2,1.123137]
[1718187013187,2.8086,3560.5,3559.6,0.24262613]
[1718187013414,2.8086,3560.5,3559.4,2.80939]
[1718187013723,2.8086,3560.5,3559.8,1.123264]
[1718187015625,2.80882,3560.3,3559.8,1.123264]
[1718187015810,2.80919,3559.8,3559.0,0.24268324]
[1718187016014,2.80919,3559.8,3559.2,1.123446]
[1718187016526,2.80919,3559.8,3559.3,8.4282]
[1718187018130,7.2909,3559.9,3559.3,8.4282]
[1718187018307,2.80938,3559.5,3559.3,8.4282]
[1718187018505,3.090318,3559.5,3559.3,8.4282]
[1718187019397,2.81015,3558.6,3557.8,7.49]
[1718187019733,2.81015,3558.6,3558.1,1.123718]
[1718187019929,2.81015,3558.6,3557.7,2.81073]
[1718187020131,2.81018,3558.5,3557.7,1.123913]
[1718187020795,2.8098,3559.0,3557.9,2.81062]
[1718187021337,2.81004,3558.7,3557.7,1.123913]
[1718187021830,0.28098,3558.9,3558.0,2.81056]
[1718187022008,2.80975,3559.1,3558.1,0.05620157]
[1718187022434,7.2736,3559.4,3558.4,2.81025]
[1718187022628,7.2736,3559.4,3558.5,0.0561965]
[1718187023040,2.80956,3559.3,3558.2,0.55]
[1718187023251,7.2736,3559.4,3558.1,3.55]
[1718187023252,2.8098,3559.0,3558.1,3.55]
[1718187023717,2.81007,3558.7,3557.6,2.81082]
[1718187023911,2.81007,3558.7,3557.8,0.05620835]
[1718187024430,7.2736,3559.4,3557.1,2.81125]
[1718187024943,7.2736,3559.4,3557.8,0.05620158]
[1718187025254,7.2736,3559.4,3557.9,0.55]
[1718187025551,0.7554538,3559.3,3558.0,0.05620157]
[1718187025721,0.7554538,3559.3,3558.1,0.55]
[1718187026054,2.80983,3559.0,3558.1,0.55]
[1718187026248,2.8101,3558.6,3557.5,2.81092]
[1718187026555,2.81034,3558.3,3557.6,3.0]
[1718187026771,2.81034,3558.3,3557.5,2.81091]
[1718187027048,2.81034,3558.3,3557.6,1.18015]
[1718187027258,2.81034,3558.3,3557.6,1.123941]
[1718187027461,2.81034,3558.3,3557.7,0.05620899]
[1718187027637,2.81034,3558.3,3557.6,1.123941]
[1718187028550,2.81034,3558.3,3557.7,0.056209]
[1718187028754,2.81034,3558.3,3557.6,1.123941]
[1718187028755,2.81072,3557.8,3557.6,1.123941]
[1718187028965,2.81072,3557.8,3556.1,3.0]
[1718187029136,2.81072,3557.8,3556.7,1.124187]
[1718187029522,2.81099,3557.5,3556.7,1.124187]
[1718187029931,7.1452,3558.2,3555.7,10.30235]
[1718187030130,1.0153234,3558.1,3556.6,1.124234]
[1718187030859,2.81058,3558.0,3557.0,2.81129]
[1718187031069,2.81058,3558.0,3557.1,0.05621663]
[1718187031368,2.81032,3558.4,3556.8,3.0]
[1718187031573,2.81032,3558.4,3557.4,2.81096]
[1718187031867,2.81052,3558.1,3557.5,3.0]
[1718187032069,2.81071,3557.9,3556.6,11.388034]
[1718187032246,2.81071,3557.9,3557.1,3.0]
[1718187032432,2.81071,3557.9,3557.1,2.8112]
[1718187032625,2.81089,3557.6,3556.6,1.124234]
[1718187032830,2.81089,3557.6,3556.7,2.86779425]
[1718187033048,2.81089,3557.6,3556.7,2.81157]
[1718187033256,2.81114,3557.3,3556.6,1.124234]
[1718187033477,2.81114,3557.3,3556.3,2.81189]
[1718187033635,2.81114,3557.3,3556.4,1.124259]
[1718187034126,2.81114,3557.3,3556.5,2.86793806]
[1718187034332,1.028089,3557.6,3556.1,2.81199]
[1718187034533,7.47,3557.8,3556.3,2.8119]
[1718187034534,2.8112,3557.2,3556.3,2.8119]
[1718187034734,2.8112,3557.2,3556.4,3.0]
[1718187034940,2.8112,3557.2,3556.3,3.936221]
[1718187035134,2.8112,3557.2,3556.3,2.8119]
[1718187036171,2.8112,3557.2,3556.5,2.81171]
[1718187036488,0.8498089,3557.5,3556.6,0.05622667]
[1718187037348,0.8498089,3557.5,3556.5,2.81171]
[1718187037552,0.8498089,3557.5,3556.7,2.81158]
[1718187040564,0.8498089,3557.5,3556.5,0.43985934]
[1718187040565,2.8111,3557.4,3556.5,0.43985934]
[1718187040780,3.17719089,3557.4,3556.5,3.43985934]
[1718187042353,3.17719089,3557.4,3556.5,0.43985934]
[1718187042354,0.36609089,3557.4,3556.5,0.43985934]
[1718187042555,0.8498089,3557.5,3556.5,0.43985934]
[1718187043243,2.81112,3557.3,3556.5,0.43985934]
[1718187043579,2.81088,3557.7,3556.5,3.49609022]
[1718187043803,2.81058,3558.0,3557.0,2.81129]
[1718187044142,5.53751,3558.1,3556.5,0.43985934]
[1718187044348,2.8111,3557.4,3556.6,2.81166]
[1718187044578,2.81051,3558.1,3557.1,2.81123]
[1718187044984,2.81051,3558.1,3557.4,2.81098]
[1718187045592,2.81026,3558.4,3557.4,2.81098]
[1718187045810,2.81026,3558.4,3557.7,2.8108]
[1718187046488,3.091286,3558.4,3557.7,2.8108]
[1718187047808,3.091286,3558.4,3557.4,2.81103]
[1718187049867,2.81026,3558.4,3557.6,2.81082]
[1718187050296,2.81026,3558.4,3557.8,2.81072]
[1718187050594,2.81002,3558.7,3557.8,2.81072]
[1718187053285,2.8103,3558.4,3557.5,3.0]
[1718187053859,2.8103,3558.4,3557.6,2.81086]
[1718187054178,2.8103,3558.4,3557.7,3.0]
[1718187057076,2.8103,3558.4,3557.6,2.81086]
[1718187058262,2.8103,3558.4,3557.3,5.81109]
[1718187058465,3.09133,3558.4,3557.3,5.81109]
[1718187058902,7.18063,3558.4,3557.3,3.0]
[1718187059201,7.18063,3558.4,3557.1,3.0]
[1718187059695,2.81098,3557.5,3557.1,3.0]
[1718187059909,2.81098,3557.5,3556.7,2.81155]
[1718187060298,2.81052,3558.1,3557.2,2.81119]
[1718187061306,3.67180169,3558.1,3557.2,2.81119]
[1718187061805,2.81081,3557.7,3556.8,6.38359842]
[1718187062010,2.81081,3557.7,3556.8,5.81144]
[1718187062679,2.81081,3557.7,3557.0,2.81133]
[1718187062889,2.81081,3557.7,3557.1,3.0]
[1718187063577,2.81058,3558.0,3557.1,3.0]
[1718187063785,9.99095,3558.4,3557.1,3.0]
[1718187064007,7.0448,3559.1,3557.2,0.60622117]
[1718187064307,0.80895644,3559.0,3557.2,4.12215842]
[1718187064513,0.80895644,3559.0,3557.6,0.57215842]
[1718187064878,0.80895644,3559.0,3557.4,0.85823764]
[1718187064879,0.80895644,3559.0,3557.5,0.57215842]
[1718187065213,2.81003,3558.7,3557.8,2.81068]
[1718187065375,2.81018,3558.5,3557.8,2.81068]
[1718187067001,2.81036,3558.3,3557.5,2.81092]
[1718187067312,2.81052,3558.1,3557.6,3.0]
[1718187067507,2.81052,3558.1,3557.4,3.0]
[1718187067814,2.81052,3558.1,3557.3,0.57215842]
[1718187067815,9.94692,3558.1,3557.3,3.0]
[1718187067987,0.994692,3558.0,3557.3,3.0]
[1718187068188,2.81067,3557.9,3557.3,3.0]
[1718187068802,2.81067,3557.9,3556.9,3.38354842]
[1718187069110,2.81067,3557.9,3557.0,3.0]
[1718187069314,2.81083,3557.7,3557.0,3.0]
[1718187069778,2.81101,3557.5,3557.0,3.0]
[1718187069979,2.81101,3557.5,3556.9,0.57215842]
[1718187070185,2.81067,3557.9,3556.9,0.57215842]
[1718187070384,2.81067,3557.9,3557.0,2.8113]
[1718187070698,2.81067,3557.9,3557.2,2.81118]
[1718187071284,0.994692,3558.0,3557.2,2.81118]
[1718187071499,0.8131092,3557.9,3557.2,2.81118]
[1718187071887,0.281003,3558.6,3557.4,2.81098]
[1718187071888,2.81036,3558.3,3557.4,2.81098]
[1718187072096,0.281003,3558.6,3557.4,2.81098]
[1718187072097,2.81054,3558.1,3557.4,2.81098]
[1718187073887,0.281003,3558.6,3557.2,0.57215842]
[1718187074084,0.58376813,3559.2,3557.6,7.161]
[1718187074085,7.0337,3559.2,3557.6,7.161]
[1718187074280,0.58376813,3559.7,3558.9,2.80979]
[1718187074585,1.24857714,3559.7,3559.1,2.80962]
[1718187074913,2.80884,3560.2,3559.1,2.80962]
[1718187075116,2.80884,3560.2,3559.4,2.80945]
[1718187076119,2.80884,3560.2,3559.0,2.80971]
[1718187076625,2.80884,3560.2,3559.3,2.80953]
[1718187077642,2.80884,3560.2,3559.5,2.80936]
[1718187078117,2.80859,3560.5,3559.8,2.80912]
[1718187078310,3.797699,3560.5,3559.8,2.80912]
[1718187078515,9.89085,3560.8,3559.8,2.80912]
[1718187083110,9.89085,3560.8,3559.9,0.05617816]
[1718187083318,2.8081,3561.2,3559.3,1.687]
[1718187083653,2.8081,3561.2,3559.4,0.55]
[1718187084414,2.8083,3560.9,3560.0,2.80895]
[1718187084607,0.28083,3560.8,3560.0,2.80895]
[1718187084929,10.23078,3560.3,3559.2,2.80957]
[1718187087006,10.23078,3560.3,3559.3,0.05618649]
[1718187087306,10.23078,3560.3,3559.2,2.80957]
[1718187087621,2.80899,3560.0,3559.1,1.123429]
[1718187087949,2.80928,3559.7,3558.8,2.80987]
[1718187088231,2.80928,3559.7,3558.8,3.933402]
[1718187089027,2.80928,3559.7,3558.9,3.0]
[1718187090531,2.80928,3559.7,3558.6,2.81002]
[1718187090836,2.80928,3559.7,3558.7,3.0]
[1718187090993,2.80928,3559.7,3558.7,4.123556]
[1718187091194,3.090208,3559.7,3558.7,4.123556]
[1718187092505,2.80946,3559.5,3558.7,4.123556]
[1718187092700,2.80966,3559.2,3558.1,2.81043]
[1718187092932,9.78736,3559.6,3558.4,1.123681]
[1718187093819,9.78736,3559.6,3558.5,0.05619636]
[1718187094033,9.78736,3559.6,3558.6,2.81005]
[1718187094604,2.80936,3559.6,3558.6,2.81005]
[1718187096649,2.80899,3560.0,3559.3,2.80948]
[1718187096824,3.52728,3560.0,3559.3,2.80948]
[1718187097570,3.52728,3560.0,3558.7,3.55]
[1718187097571,2.80923,3559.7,3558.8,2.80988]
[1718187097936,3.52729,3560.0,3559.1,2.80969]
[1718187099986,0.71829,3560.0,3558.8,2.80993]
[1718187100139,0.790119,3559.9,3558.8,2.80993]
[1718187101275,2.80943,3559.5,3558.8,2.80993]
[1718187101947,2.80963,3559.2,3558.7,3.0]
[1718187102175,6.7959,3558.5,3558.4,1.123681]
[1718187102351,6.7959,3558.5,3557.6,0.43955626]
[1718187102352,2.81032,3558.4,3557.6,0.43955626]
[1718187102850,2.81047,3558.2,3557.2,2.81117]
[1718187104278,2.81063,3558.0,3557.2,2.81117]
[1718187105675,2.81032,3558.4,3557.3,0.05621824]
[1718187105876,2.81032,3558.4,3557.3,3.0]
[1718187106076,2.81032,3558.4,3557.4,2.81103]
[1718187106565,2.81048,3558.2,3557.3,3.0]
[1718187106760,2.81048,3558.2,3557.2,3.0]
[1718187107780,2.81048,3558.2,3557.3,2.81109]
[1718187108083,2.81048,3558.2,3557.4,3.0]
[1718187110682,2.81048,3558.2,3557.5,2.81093]
[1718187111961,2.81019,3558.5,3557.5,2.81093]
[1718187112160,3.295809,3558.5,3557.5,2.81093]
[1718187113779,2.81039,3558.3,3557.5,2.81093]
[1718187114478,0.485619,3558.5,3556.9,1.124096]
[1718187114680,2.81117,3557.3,3556.8,0.43972768]
[1718187116057,2.81139,3557.0,3556.8,0.43972768]
[1718187116374,1.000449,3556.9,3556.8,0.43972768]
[1718187116582,2.81139,3557.0,3556.8,0.43972768]
[1718187117779,2.81139,3557.0,3556.8,0.25989984]
[1718187119082,2.81157,3556.8,3556.0,3.0]
[1718187122184,2.81157,3556.8,3556.0,2.842547]
[1718187125377,2.81179,3556.5,3555.6,2.81245]
[1718187125581,2.81179,3556.5,3555.7,3.0]
[1718187125956,2.81179,3556.5,3555.5,0.43991151]
[1718187125957,2.81203,3556.2,3555.5,0.43991151]
[1718187126767,7.4972,3556.1,3555.5,0.43991151]
[1718187126954,9.5432,3556.1,3555.5,0.43991151]
[1718187127154,2.81243,3555.7,3555.5,0.43991151]
[1718187128578,2.81217,3556.0,3555.5,0.43991151]
[1718187128782,2.81217,3556.0,3555.0,2.81287]
[1718187129097,2.81217,3556.0,3555.2,2.81273]
[1718187130312,2.81235,3555.8,3555.1,3.0]
[1718187130465,7.4315,3555.7,3554.9,1.124756]
[1718187130664,7.4315,3555.7,3554.5,3.25331796]
[1718187130893,2.81199,3556.2,3555.3,2.81266]
[1718187131404,10.24344,3556.3,3555.3,2.81266]
[1718187131692,10.24344,3556.3,3554.7,0.24298678]
[1718187131693,2.81169,3556.6,3555.7,2.81233]
[1718187132661,7.26,3556.9,3555.5,7.0707]
[1718187132662,7.26,3556.9,3555.9,2.81215]
[1718187132963,2.81144,3556.9,3556.2,2.81195]
[1718187133160,2.81119,3557.3,3556.5,2.81174]
[1718187133400,9.8491,3557.9,3556.8,2.81147]
[1718187137394,9.8491,3557.9,3557.0,2.8113]
[1718187137395,2.8107,3557.9,3557.0,2.8113]
[1718187138018,2.81039,3558.3,3557.3,2.81109]
[1718187138292,2.81052,3558.1,3557.3,2.81109]